fUSD/lending_fUSD_20240919
["ID","MTS","AMOUNT","RATE_DAILY","PERIOD"]
[338547676,1726729833069,-769.07,0.00012889,2]
[338547677,1726729833079,-500.0,0.00012889,2]
[338547678,1726729833088,-182.30796378,0.00012889,2]
[338547679,1726729833098,-500.0,0.00012889,2]
[338547680,1726729833108,-500.0,0.00012889,2]
[338547681,1726729833118,-500.0,0.00012889,2]
[338547682,1726729833131,-500.0,0.00012889,2]
[338547683,1726729833140,-500.0,0.00012889,2]
[338547684,1726729833150,-1474.59,0.00012889,2]
[338547685,1726729833160,-1462.48,0.00012889,2]
[338547686,1726729833169,-1041.06,0.00012889,2]
[338547687,1726729833179,-5348.02,0.00012889,2]
[338547688,1726729833188,-500.0,0.00012889,2]
[338547689,1726729833198,-3157.28,0.00012889,2]
[338547690,1726729833209,-500.0,0.00012889,2]
[338547691,1726729833219,-1895.6,0.00012889,2]
[338547692,1726729833228,-500.0,0.00012889,2]
[338547693,1726729833237,-500.0,0.00012889,2]
[338547694,1726729833247,-500.0,0.00012889,2]
[338547695,1726729833256,-1245.23,0.00012889,2]
[338547696,1726729833265,-500.0,0.00012889,2]
[338547697,1726729833275,-500.0,0.00012889,2]
[338547698,1726729833284,-500.0,0.00012889,2]
[338547699,1726729833293,-348.86888759,0.00012889,2]
[338547700,1726729833302,-542.73,0.00012889,2]
[338547701,1726729833311,-500.0,0.00012889,2]
[338547702,1726729833320,-500.0,0.00012889,2]
[338547703,1726729833329,-500.0,0.00012889,2]
[338547704,1726729833339,-500.0,0.00012889,2]
[338547705,1726729833348,-624.2,0.00012889,2]
[338547706,1726729833361,-500.0,0.00012889,2]
[338547707,1726729833371,-500.0,0.00012889,2]
[338547708,1726729833380,-500.0,0.00012889,2]
[338547709,1726729833389,-653.63,0.00012889,2]
[338547710,1726729833400,-500.0,0.00012889,2]
[338547711,1726729833409,-500.0,0.00012889,2]
[338547712,1726729833419,-761.62,0.00012889,2]
[338547713,1726729833429,-500.0,0.00012889,2]
[338547714,1726729833439,-9635.34,0.00012889,2]
[338547715,1726729833449,-500.0,0.00012889,2]
[338547716,1726729833458,-500.0,0.00012889,2]
[338547717,1726729833468,-500.0,0.00012889,2]
[338547718,1726729833477,-500.0,0.00012889,2]
[338547719,1726729833487,-964.13,0.00012889,2]
[338547720,1726729833496,-500.0,0.00012889,2]
[338547721,1726729833504,-584.66,0.00012889,2]
[338547722,1726729833512,-21717.28,0.00012889,2]
[338547723,1726729833521,-477.29145946,0.00012889,2]
[338547724,1726729833531,-1667.66,0.00012889,2]
[338547725,1726729833540,-500.0,0.00012889,2]
[338547726,1726729833550,-2243.42,0.00012889,2]
[338547727,1726729833560,-890.98,0.00012889,2]
[338547728,1726729833570,-500.0,0.00012889,2]
[338547729,1726729833579,-804.38,0.00012889,2]
[338547730,1726729833588,-828.23,0.00012889,2]
[338547731,1726729833598,-500.0,0.00012889,2]
[338547732,1726729833607,-3580.03,0.00012889,2]
[338547733,1726729833617,-2808.52,0.00012889,2]
[338547734,1726729833629,-500.0,0.00012889,2]
[338547735,1726729833638,-1989.44,0.00012889,2]
[338547736,1726729833647,-631.78,0.00012889,2]
[338547737,1726729833657,-500.0,0.00012889,2]
[338547738,1726729833667,-500.0,0.00012889,2]
[338547739,1726729833676,-695.9,0.00012889,2]
[338547740,1726729833686,-174.6,0.00012889,2]
[338547741,1726729833695,-500.0,0.00012889,2]
[338547742,1726729833705,-526.0,0.00012889,2]
[338547743,1726729833715,-2406.68,0.00012889,2]
[338547744,1726729833725,-5332.15,0.00012889,2]
[338547745,1726729833734,-696.82,0.00012889,2]
[338547746,1726729833743,-2150.52,0.00012889,2]
[338547747,1726729833752,-1456.85,0.00012889,2]
[338547748,1726729833762,-500.0,0.00012889,2]
[338547749,1726729833772,-583.25,0.00012889,2]
[338547750,1726729833781,-500.0,0.00012889,2]
[338547751,1726729833792,-500.0,0.00012889,2]
[338547752,1726729833801,-581.96,0.00012889,2]
[338547753,1726729833810,-1973.46,0.00012889,2]
[338547754,1726729833820,-2866.81,0.00012889,2]
[338547755,1726729833830,-500.0,0.00012889,2]
[338547756,1726729833839,-2334.84,0.00012889,2]
[338547757,1726729833848,-500.0,0.00012889,2]
[338547758,1726729833858,-500.0,0.00012889,2]
[338547759,1726729833867,-500.0,0.00012889,2]
[338547760,1726729833877,-500.0,0.00012889,2]
[338547761,1726729833887,-6425.55,0.00012889,2]
[338547762,1726729833896,-2384.09,0.00012889,2]
[338547763,1726729833905,-3292.95,0.00012889,2]
[338547764,1726729833915,-798.98,0.00012889,2]
[338547765,1726729833924,-710.8,0.00012889,2]
[338547766,1726729833935,-500.0,0.00012889,2]
[338547767,1726729833944,-610.46,0.00012889,2]
[338547768,1726729833953,-3431.93,0.00012889,2]
[338547769,1726729833963,-4029.15,0.00012889,2]
[338547770,1726729833973,-500.0,0.00012889,2]
[338547771,1726729833982,-2638.96,0.00012889,2]
[338547772,1726729833992,-2027.01,0.00012889,2]
[338547773,1726729834002,-860.94,0.00012889,2]
[338547774,1726729834011,-908.98,0.00012889,2]
[338547775,1726729834021,-1131.37,0.00012889,2]
[338547776,1726729834030,-855.56,0.00012889,2]
[338547777,1726729834040,-1058.01,0.00012889,2]
[338547778,1726729834049,-1341.34,0.00012889,2]
[338547779,1726729834058,-1764.63,0.00012889,2]
[338547780,1726729834068,-500.0,0.00012889,2]
[338547781,1726729834077,-1949.84,0.00012889,2]
[338547782,1726729834086,-500.0,0.00012889,2]
[338547783,1726729834096,-500.0,0.00012889,2]
[338547784,1726729834105,-500.0,0.00012889,2]
[338547785,1726729834114,-500.0,0.00012889,2]
[338547786,1726729834124,-1962.54,0.00012889,2]
[338547787,1726729834134,-1570.35,0.00012889,2]
[338547788,1726729834144,-1176.38,0.00012889,2]
[338547789,1726729834153,-500.0,0.00012889,2]
[338547790,1726729834163,-1985.23,0.00012889,2]
[338547791,1726729834172,-1102.67,0.00012889,2]
[338547792,1726729834182,-500.0,0.00012889,2]
[338547793,1726729834191,-659.02,0.00012889,2]
[338547794,1726729834200,-500.0,0.00012889,2]
[338547795,1726729834210,-1667.56,0.00012889,2]
[338547796,1726729834219,-1782.24,0.00012889,2]
[338547797,1726729834229,-500.0,0.00012889,2]
[338547798,1726729834239,-2407.41,0.00012889,2]
[338547799,1726729834249,-2997.3,0.00012889,2]
[338547800,1726729834258,-546.66,0.0001289,2]
[338547801,1726729834268,-500.0,0.0001289,2]
[338547802,1726729834277,-506.99,0.0001289,2]
[338547803,1726729834286,-500.0,0.0001289,2]
[338547804,1726729834296,-767.2,0.0001289,2]
[338547805,1726729834305,-663.28,0.0001289,2]
[338547806,1726729834315,-870.4,0.0001289,2]
[338547807,1726729834324,-500.0,0.0001289,2]
[338547808,1726729834333,-500.0,0.0001289,2]
[338547809,1726729834342,-680.45,0.0001289,2]
[338547810,1726729834352,-1114.58,0.0001289,2]
[338547811,1726729834364,-500.0,0.0001289,2]
[338547812,1726729834374,-500.0,0.0001289,2]
[338547813,1726729834384,-500.0,0.0001289,2]
[338547814,1726729834393,-862.69,0.0001289,2]
[338547815,1726729834404,-500.0,0.0001289,2]
[338547816,1726729834413,-596.08,0.0001289,2]
[338547817,1726729834423,-500.0,0.0001289,2]
[338547818,1726729834435,-500.0,0.0001289,2]
[338547819,1726729834445,-500.0,0.0001289,2]
[338547820,1726729834454,-1121.99,0.0001289,2]
[338547821,1726729834464,-500.0,0.0001289,2]
[338547822,1726729834474,-500.0,0.0001289,2]
[338547823,1726729834483,-500.0,0.0001289,2]
[338547824,1726729834493,-500.0,0.0001289,2]
[338547825,1726729834502,-500.0,0.0001289,2]
[338547826,1726729834511,-500.0,0.0001289,2]
[338547827,1726729834521,-500.0,0.0001289,2]
[338547828,1726729834531,-950.29,0.0001289,2]
[338547829,1726729834541,-500.0,0.0001289,2]
[338547830,1726729834552,-500.0,0.0001289,2]
[338547831,1726729834562,-533.92,0.0001289,2]
[338547832,1726729834571,-500.0,0.0001289,2]
[338547833,1726729834581,-554.59,0.0001289,2]
[338547834,1726729834591,-500.0,0.0001289,2]
[338547835,1726729834600,-500.0,0.0001289,2]
[338547836,1726729834610,-210.68467501,0.0001289,2]
[338547837,1726729834619,-500.0,0.0001289,2]
[338547838,1726729834628,-500.0,0.0001289,2]
[338547839,1726729834638,-500.0,0.0001289,2]
[338547840,1726729834647,-500.0,0.0001289,2]
[338547841,1726729834658,-500.0,0.0001289,2]
[338547842,1726729834668,-742.92,0.0001289,2]
[338547843,1726729834678,-500.0,0.0001289,2]
[338547844,1726729834687,-500.0,0.0001289,2]
[338547845,1726729834696,-500.0,0.0001289,2]
[338547846,1726729834706,-1203.82,0.0001289,2]
[338547847,1726729834715,-500.0,0.0001289,2]
[338547848,1726729834725,-500.0,0.0001289,2]
[338547849,1726729834735,-500.0,0.0001289,2]
[338547850,1726729834744,-500.0,0.0001289,2]
[338547851,1726729834753,-915.63,0.0001289,2]
[338547852,1726729834763,-549.96,0.0001289,2]
[338547853,1726729834773,-500.0,0.0001289,2]
[338547854,1726729834783,-500.0,0.0001289,2]
[338547855,1726729834792,-1083.45,0.0001289,2]
[338547856,1726729834802,-1194.05,0.0001289,2]
[338547857,1726729834811,-667.57,0.0001289,2]
[338547858,1726729834820,-500.0,0.0001289,2]
[338547859,1726729834829,-537.46,0.0001289,2]
[338547860,1726729834838,-500.0,0.0001289,2]
[338547861,1726729834848,-500.0,0.0001289,2]
[338547862,1726729834857,-500.0,0.0001289,2]
[338547863,1726729834867,-500.0,0.0001289,2]
[338547864,1726729834877,-500.0,0.0001289,2]
[338547865,1726729834887,-500.0,0.0001289,2]
[338547866,1726729834896,-500.0,0.0001289,2]
[338547867,1726729834905,-500.0,0.0001289,2]
[338547868,1726729834914,-1099.55,0.0001289,2]
[338547869,1726729834924,-500.0,0.0001289,2]
[338547870,1726729834933,-500.0,0.0001289,2]
[338547871,1726729834943,-500.0,0.0001289,2]
[338547872,1726729834952,-971.69,0.0001289,2]
[338547873,1726729834962,-500.0,0.0001289,2]
[338547874,1726729834975,-500.0,0.0001289,2]
[338547875,1726729834984,-1000.0,0.0001289,2]
[338547876,1726729834993,-571.92167825,0.0001289,2]
[338547877,1726729835005,-500.0,0.0001289,2]
[338547878,1726729835014,-720.34,0.0001289,2]
[338547879,1726729835024,-983.1,0.0001289,2]
[338547880,1726729835033,-500.0,0.0001289,2]
[338547881,1726729835042,-714.49,0.0001289,2]
[338547882,1726729835052,-500.0,0.0001289,2]
[338547883,1726729835061,-797.11,0.0001289,2]
[338547884,1726729835070,-717.09,0.0001289,2]
[338547885,1726729835079,-500.0,0.0001289,2]
[338547886,1726729835089,-500.0,0.0001289,2]
[338547887,1726729835131,-500.0,0.0001289,2]
[338547888,1726729835141,-500.0,0.0001289,2]
[338547889,1726729835150,-500.0,0.0001289,2]
[338547890,1726729835160,-500.0,0.0001289,2]
[338547891,1726729835169,-500.0,0.0001289,2]
[338547892,1726729835179,-500.0,0.0001289,2]
[338547893,1726729835189,-589.49,0.0001289,2]
[338547894,1726729835199,-1589.45,0.0001289,2]
[338547895,1726729835208,-500.0,0.0001289,2]
[338547896,1726729835217,-500.0,0.0001289,2]
[338547897,1726729835227,-500.0,0.0001289,2]
[338547898,1726729835238,-1128.29,0.0001289,2]
[338547899,1726729835249,-500.0,0.0001289,2]
[338547900,1726729835258,-1551.37,0.0001289,2]
[338547901,1726729835268,-258.57601981,0.0001289,2]
[338547902,1726729835277,-1147.41,0.0001289,2]
[338547903,1726729835287,-686.58,0.0001289,2]
[338547904,1726729835297,-1010.02,0.0001289,2]
[338547905,1726729835306,-1506.96,0.0001289,2]
[338547906,1726729835316,-500.0,0.0001289,2]
[338547907,1726729835325,-725.39,0.0001289,2]
[338547908,1726729835335,-500.0,0.0001289,2]
[338547909,1726729835345,-500.0,0.0001289,2]
[338547910,1726729835359,-636.67,0.0001289,2]
[338547911,1726729835372,-500.0,0.0001289,2]
[338547912,1726729835381,-538.89,0.0001289,2]
[338547913,1726729835391,-500.0,0.0001289,2]
[338547914,1726729835401,-682.37,0.0001289,2]
[338547915,1726729835410,-1083.46,0.0001289,2]
[338547916,1726729835420,-500.0,0.0001289,2]
[338547917,1726729835431,-782.47,0.0001289,2]
[338547918,1726729835442,-1065.25,0.0001289,2]
[338547919,1726729835452,-500.0,0.0001289,2]
[338547920,1726729835462,-500.0,0.0001289,2]
[338547921,1726729835471,-500.0,0.0001289,2]
[338547922,1726729835480,-500.0,0.0001289,2]
[338547923,1726729835489,-500.0,0.0001289,2]
[338547924,1726729835499,-781.41,0.0001289,2]
[338547925,1726729835508,-1029.27,0.0001289,2]
[338547926,1726729835517,-500.0,0.0001289,2]
[338547927,1726729835528,-443.40109021,0.0001289,2]
[338547928,1726729835538,-500.0,0.0001289,2]
[338547929,1726729835547,-1307.46,0.0001289,2]
[338547930,1726729835556,-568.78,0.0001289,2]
[338547931,1726729835565,-500.0,0.0001289,2]
[338547932,1726729835574,-836.52,0.0001289,2]
[338547933,1726729835583,-1304.88,0.0001289,2]
[338547934,1726729835592,-500.0,0.0001289,2]
[338547935,1726729835601,-28699.272,0.0001289,2]
[338547936,1726729835610,-500.0,0.0001289,2]
[338547937,1726729835621,-500.0,0.0001289,2]
[338547938,1726729835630,-613.42,0.0001289,2]
[338547939,1726729835639,-718.99,0.0001289,2]
[338547940,1726729835648,-513.37,0.0001289,2]
[338547941,1726729835658,-500.0,0.0001289,2]
[338547942,1726729835667,-715.0,0.0001289,2]
[338547943,1726729835676,-1519.54,0.0001289,2]
[338547944,1726729835685,-500.0,0.0001289,2]
[338547945,1726729835694,-1342.82,0.0001289,2]
[338547946,1726729835703,-500.0,0.0001289,2]
[338547947,1726729835712,-760.2,0.0001289,2]
[338547948,1726729835721,-539.88,0.0001289,2]
[338547949,1726729835730,-500.0,0.0001289,2]
[338547950,1726729835739,-411.08235933,0.0001289,2]
[338547951,1726729835748,-587.66,0.0001289,2]
[338547952,1726729835757,-905.51,0.0001289,2]
[338547953,1726729835765,-733.84,0.0001289,2]
[338547954,1726729835775,-500.0,0.0001289,2]
[338547955,1726729835783,-1310.96,0.0001289,2]
[338547956,1726729835792,-500.0,0.0001289,2]
[338547957,1726729835802,-628.24,0.0001289,2]
[338547958,1726729835810,-500.0,0.0001289,2]
[338547959,1726729835819,-716.15,0.0001289,2]
[338547960,1726729835829,-1160.45,0.0001289,2]
[338547961,1726729835838,-584.24355201,0.0001289,2]
[338547962,1726729835847,-500.0,0.0001289,2]
[338547963,1726729835856,-644.0,0.0001289,2]
[338547964,1726729835865,-500.0,0.0001289,2]
[338547965,1726729835875,-2580.92,0.0001289,2]
[338547966,1726729835894,-500.0,0.0001289,2]
[338547967,1726729835903,-773.32,0.0001289,2]
[338547968,1726729835912,-603.05,0.0001289,2]
[338547969,1726729835922,-1227.83,0.0001289,2]
[338547970,1726729835931,-878.47,0.0001289,2]
[338547971,1726729835940,-500.0,0.0001289,2]
[338547972,1726729835949,-557.96,0.0001289,2]
[338547973,1726729835958,-500.0,0.0001289,2]
[338547974,1726729835968,-1368.06,0.0001289,2]
[338547975,1726729835977,-500.0,0.0001289,2]
[338547976,1726729835986,-500.0,0.0001289,2]
[338547977,1726729835994,-500.0,0.0001289,2]
[338547978,1726729836003,-258.39464055,0.0001289,2]
[338547979,1726729836012,-1811.56,0.0001289,2]
[338547980,1726729836022,-1307.12,0.0001289,2]
[338547981,1726729836031,-500.0,0.0001289,2]
[338547982,1726729836040,-500.0,0.0001289,2]
[338547983,1726729836049,-500.0,0.0001289,2]
[338547984,1726729836058,-736.04,0.0001289,2]
[338547985,1726729836067,-500.0,0.0001289,2]
[338547986,1726729836077,-500.0,0.0001289,2]
[338547987,1726729836086,-500.0,0.0001289,2]
[338547988,1726729836096,-215.44920956,0.0001289,2]
[338547989,1726729836105,-1291.24,0.0001289,2]
[338547990,1726729836114,-500.0,0.0001289,2]
[338547991,1726729836126,-500.0,0.0001289,2]
[338547992,1726729836135,-500.0,0.0001289,2]
[338547993,1726729836144,-500.0,0.0001289,2]
[338547994,1726729836154,-500.0,0.0001289,2]
[338547995,1726729836163,-505.65,0.0001289,2]
[338547996,1726729836172,-500.0,0.0001289,2]
[338547997,1726729836181,-500.0,0.0001289,2]
[338547998,1726729836190,-583.87,0.0001289,2]
[338547999,1726729836199,-500.0,0.0001289,2]
[338548000,1726729836208,-500.0,0.0001289,2]
[338548001,1726729836217,-758.11,0.0001289,2]
[338548002,1726729836227,-1253.84,0.0001289,2]
[338548003,1726729836236,-500.0,0.0001289,2]
[338548004,1726729836246,-872.91,0.0001289,2]
[338548005,1726729836255,-500.0,0.0001289,2]
[338548006,1726729836264,-580.45,0.0001289,2]
[338548007,1726729836274,-500.0,0.0001289,2]
[338548008,1726729836283,-1456.78,0.0001289,2]
[338548009,1726729836292,-705.32,0.0001289,2]
[338548010,1726729836301,-3325.82,0.0001289,2]
[338548011,1726729836310,-1567.87,0.0001289,2]
[338548012,1726729836320,-1173.05,0.0001289,2]
[338548013,1726729836329,-500.0,0.0001289,2]
[338548014,1726729836338,-1109.86,0.0001289,2]
[338548015,1726729836347,-500.0,0.0001289,2]
[338548016,1726729836359,-539.53,0.0001289,2]
[338548017,1726729836368,-1021.35,0.0001289,2]
[338548018,1726729836379,-500.0,0.0001289,2]
[338548019,1726729836387,-500.0,0.0001289,2]
[338548020,1726729836396,-500.0,0.0001289,2]
[338548021,1726729836406,-1066.53,0.0001289,2]
[338548022,1726729836564,-500.0,0.0001289,2]
[338548023,1726729836576,-1098.11,0.0001289,2]
[338548024,1726729836586,-695.53,0.0001289,2]
[338548025,1726729836595,-18.2784135,0.0001289,2]
[338548026,1726729836616,-621.9315865,0.0001289,2]
[338548027,1726729836627,-500.0,0.0001289,2]
[338548028,1726729836636,-108.08601207,0.0001289,2]
[338548029,1726729836648,-391.91398793,0.0001289,2]
[338548030,1726729836658,-1785.44943496,0.0001289,2]
[338548031,1726729836669,-507.99056504,0.0001289,2]
[338548032,1726729836678,-500.0,0.0001289,2]
[338548033,1726729836688,-500.0,0.0001289,2]
[338548034,1726729836697,-162.38161438,0.0001289,2]
[338548035,1726729836706,-935.0,0.0001289,2]
[338548036,1726729836716,-806.24,0.0001289,2]
[338548037,1726729836725,-500.0,0.0001289,2]
[338548038,1726729836734,-562.84,0.0001289,2]
[338548039,1726729836743,-500.0,0.0001289,2]
[338548040,1726729836754,-500.0,0.0001289,2]
[338548041,1726729836763,-3885.34,0.0001289,2]
[338548042,1726729836773,-500.0,0.0001289,2]
[338548043,1726729836782,-500.0,0.0001289,2]
[338548044,1726729836791,-500.0,0.0001289,2]
[338548045,1726729836800,-675.88,0.0001289,2]
[338548046,1726729836810,-1392.55,0.0001289,2]
[338548047,1726729836819,-500.0,0.0001289,2]
[338548048,1726729836829,-639.39,0.0001289,2]
[338548049,1726729836838,-500.0,0.0001289,2]
[338548050,1726729836847,-688.01,0.0001289,2]
[338548051,1726729836857,-2048.2,0.0001289,2]
[338548052,1726729836867,-562.79718245,0.0001289,2]
[338548053,1726729836877,-500.0,0.0001289,2]
[338548054,1726729836886,-3167.43,0.0001289,2]
[338548055,1726729836896,-500.0,0.0001289,2]
[338548056,1726729836905,-219.81256511,0.0001289,2]
[338548057,1726729836917,-280.18743489,0.0001289,2]
[338548058,1726729836926,-731.46,0.0001289,2]
[338548059,1726729836936,-1452.09,0.0001289,2]
[338548060,1726729836945,-777.14,0.0001289,2]
[338548061,1726729836955,-658.27,0.0001289,2]
[338548062,1726729836964,-500.0,0.0001289,2]
[338548063,1726729836974,-818.77,0.0001289,2]
[338548064,1726729836983,-556.65,0.0001289,2]
[338548065,1726729837001,-500.0,0.0001289,2]
[338548066,1726729837013,-821.7,0.0001289,2]
[338548067,1726729837023,-2195.66,0.0001289,2]
[338548068,1726729837034,-500.0,0.0001289,2]
[338548069,1726729837044,-43.65436819,0.0001289,2]
[338548070,1726729837066,-456.34563181,0.0001289,2]
[338548071,1726729837076,-1045.84,0.0001289,2]
[338548072,1726729837086,-176.87631081,0.0001289,2]
[338548073,1726729837099,-2063.27368919,0.0001289,2]
[338548074,1726729837109,-500.0,0.0001289,2]
[338548075,1726729837119,-1022.83898081,0.0001289,2]
[338548076,1726729837132,-335.70101919,0.0001289,2]
[338548077,1726729837142,-500.0,0.0001289,2]
[338548078,1726729837152,-579.73524099,0.0001289,2]
[338548079,1726729837179,-1613.75,0.00012889,2]
[338548080,1726729837189,-657.86475901,0.0001289,2]
[338548081,1726729837199,-450.51028828,0.0001289,2]
[338548082,1726729837212,-49.48971172,0.0001289,2]
[338548083,1726729837222,-728.94,0.0001289,2]
[338548084,1726729837232,-593.87,0.0001289,2]
[338548085,1726729837242,-590.47,0.0001289,2]
[338548086,1726729837252,-500.0,0.0001289,2]
[338548087,1726729837263,-870.73,0.0001289,2]
[338548088,1726729837273,-977.17,0.0001289,2]
[338548089,1726729837283,-642.86,0.0001289,2]
[338548090,1726729837292,-500.0,0.0001289,2]
[338548091,1726729837302,-984.4,0.0001289,2]
[338548092,1726729837313,-551.1,0.0001289,2]
[338548093,1726729837323,-500.0,0.0001289,2]
[338548094,1726729837333,-500.0,0.0001289,2]
[338548095,1726729837343,-692.55,0.0001289,2]
[338548096,1726729837354,-500.0,0.0001289,2]
[338548097,1726729837366,-500.0,0.0001289,2]
[338548098,1726729837376,-587.48,0.0001289,2]
[338548099,1726729837387,-500.0,0.0001289,2]
[338548100,1726729837397,-500.0,0.0001289,2]
[338548101,1726729837407,-597.14,0.0001289,2]
[338548102,1726729837417,-945.87,0.0001289,2]
[338548103,1726729837426,-572.54,0.0001289,2]
[338548104,1726729837438,-500.0,0.0001289,2]
[338548105,1726729837447,-500.0,0.0001289,2]
[338548106,1726729837457,-598.08,0.0001289,2]
[338548107,1726729837468,-628.67,0.0001289,2]
[338548108,1726729837478,-721.47,0.0001289,2]
[338548109,1726729837487,-2600.0,0.000129,4]
[338548110,1726729837497,-275.653,0.00012993,2]
[338548111,1726729837506,-70291.80778787,0.00013,2]
[338548112,1726729837516,-1000.0,0.00013,10]
[338548113,1726729837527,-500.0,0.00013,2]
[338548114,1726729837537,-18533.10320822,0.00013024,2]
[338548115,1726729837547,-499.99,0.00013024,2]
[338548116,1726729837557,-1500.0,0.00013032,2]
[338548117,1726729837567,-1500.0,0.0001305,2]
[338548118,1726729837577,-1500.0,0.00013055,2]
[338548119,1726729837587,-150.0,0.00013057,2]
[338548120,1726729837597,-150.0,0.00013059,2]
[338548121,1726729837607,-160.74645545,0.00013064,2]
[338548122,1726729837616,-158.56691584,0.00013064,2]
[338548123,1726729837628,-44543.2249,0.00013064,2]
[338548124,1726729837638,-272.8281,0.00013064,2]
[338548125,1726729837648,-150.0,0.00013065,2]
[338548126,1726729837658,-150.0,0.00013073,2]
[338548127,1726729837668,-150.0,0.00013073,2]
[338548128,1726729837679,-150.0,0.00013075,2]
[338548129,1726729837689,-1500.0,0.00013076,2]
[338548130,1726729837698,-150.0,0.00013081,2]
[338548131,1726729837708,-150.0,0.00013081,2]
[338548132,1726729837717,-150.0,0.00013083,2]
[338548133,1726729837727,-150.0,0.00013087,2]
[338548134,1726729837738,-150.0,0.00013089,2]
[338548135,1726729837747,-342.33076862,0.0001309,2]
[338548136,1726729837758,-576.18562701,0.00013091,2]
[338548137,1726729837768,-150.0,0.00013092,2]
[338548138,1726729837777,-150.0,0.00013094,2]
[338548139,1726729837787,-150.0,0.00013094,2]
[338548140,1726729837797,-150.0,0.00013099,2]
[338548141,1726729837807,-150.0,0.00013099,2]
[338548142,1726729837816,-150.0,0.00013102,2]
[338548143,1726729837827,-150.0,0.00013105,2]
[338548144,1726729837837,-150.0,0.00013111,2]
[338548145,1726729837847,-150.0,0.00013125,2]
[338548146,1726729837856,-150.0,0.00013129,2]
[338548147,1726729837866,-1500.0,0.00013136,2]
[338548148,1726729837877,-150.0,0.00013137,2]
[338548149,1726729837887,-1500.0,0.00013138,2]
[338548150,1726729837897,-150.0,0.00013139,2]
[338548151,1726729837907,-150.0,0.00013144,2]
[338548152,1726729837917,-150.0,0.00013146,2]
[338548153,1726729837928,-150.0,0.00013147,2]
[338548154,1726729837938,-150.0,0.00013156,2]
[338548155,1726729837948,-150.0,0.00013157,2]
[338548156,1726729837959,-174.78827664,0.00013162,5]
[338548157,1726729837969,-164.00828377,0.00013162,2]
[338548158,1726729837979,-500.0,0.00013162,2]
[338548159,1726729837990,-500.0,0.00013162,2]
[338548160,1726729838000,-500.0,0.00013162,2]
[338548161,1726729838009,-344.79798205,0.00013162,2]
[338548162,1726729838020,-500.0,0.00013162,2]
[338548163,1726729838030,-500.0,0.00013162,2]
[338548164,1726729838039,-500.0,0.00013162,2]
[338548165,1726729838050,-500.0,0.00013162,2]
[338548166,1726729838060,-500.0,0.00013162,2]
[338548167,1726729838070,-600.0,0.00013162,2]
[338548168,1726729838080,-577.58,0.00013163,2]
[338548169,1726729838090,-500.0,0.00013163,2]
[338548170,1726729838100,-650.65,0.00013163,2]
[338548171,1726729838110,-500.0,0.00013163,2]
[338548172,1726729838120,-881.59,0.00013163,2]
[338548173,1726729838135,-500.0,0.00013163,2]
[338548174,1726729838145,-500.0,0.00013163,2]
[338548175,1726729838157,-500.0,0.00013163,2]